bitfinex-derivatives/quotes_BTCF0:USTF0_20251228
["timestamp","ask_amount","ask_price","bid_price","bid_amount"]
[1766884805068,0.0113854,87893.0,87875.0,0.00017072]
[1766884808075,0.057,87897.0,87875.0,0.00017072]
[1766884809164,0.0113857,87891.0,87875.0,0.00017072]
[1766884809369,0.057,87890.0,87875.0,0.00017072]
[1766884811470,0.0113859,87889.0,87875.0,0.00017072]
[1766884811670,0.0113862,87887.0,87875.0,0.00017072]
[1766884813771,0.0113862,87887.0,87875.0,6.52e-06]
[1766884813772,0.0614717,87884.0,87875.0,6.52e-06]
[1766884814576,0.0113867,87883.0,87875.0,6.52e-06]
[1766884815471,0.0614717,87884.0,87875.0,6.52e-06]
[1766884815672,0.0614717,87882.0,87866.0,0.02968]
[1766884815875,0.0614717,87882.0,87864.0,0.12476]
[1766884816373,0.0614717,87886.0,87864.0,0.12476]
[1766884816573,0.0113866,87884.0,87864.0,0.12476]
[1766884816765,0.0113866,87884.0,87866.0,0.00017072]
[1766884816962,0.0113869,87882.0,87866.0,0.00017072]
[1766884819665,0.0001642,87888.0,87844.0,0.04099059]
[1766884819666,0.11415157,87880.0,87844.0,0.04099059]
[1766884819871,0.011388,87874.0,87845.0,0.12476]
[1766884820178,0.011388,87874.0,87846.0,0.12476]
[1766884820375,0.0113882,87872.0,87851.0,0.0113907]
[1766884820586,0.02422354,87871.0,87851.0,0.0113907]
[1766884820773,0.02439426,87870.0,87852.0,0.00017072]
[1766884820975,0.02422354,87869.0,87852.0,0.00017072]
[1766884821171,0.00017072,87870.0,87852.0,0.00017072]
[1766884821172,0.02422354,87868.0,87852.0,0.00017072]
[1766884821369,0.02422354,87867.0,87852.0,0.00017072]
[1766884821574,0.02422354,87866.0,87852.0,0.00017072]
[1766884821777,0.02422354,87865.0,87852.0,0.00017072]
[1766884821976,0.02422354,87864.0,87852.0,0.00017072]
[1766884822177,0.02422354,87863.0,87852.0,0.00017072]
[1766884822478,0.02422354,87862.0,87852.0,0.00017072]
[1766884822682,0.00017072,87870.0,87852.0,0.00017072]
[1766884822887,0.02421778,87869.0,87852.0,0.00017072]
[1766884823181,0.02421778,87868.0,87852.0,0.00017072]
[1766884823382,0.02421778,87867.0,87852.0,0.00017072]
[1766884823584,0.02421778,87866.0,87852.0,0.00017072]
[1766884823779,0.02421778,87865.0,87852.0,0.00017072]
[1766884823979,0.02421778,87864.0,87852.0,0.00017072]
[1766884824180,0.02421778,87863.0,87852.0,0.00017072]
[1766884824380,0.00017072,87870.0,87852.0,0.00017072]
[1766884824686,0.02427678,87869.0,87852.0,0.00017072]
[1766884824871,0.02427678,87868.0,87852.0,0.00017072]
[1766884825071,0.02427678,87867.0,87852.0,0.00017072]
[1766884825275,0.02427678,87866.0,87852.0,0.00017072]
[1766884825486,0.02427678,87865.0,87852.0,0.00017072]
[1766884825683,0.02427678,87864.0,87852.0,0.00017072]
[1766884825885,0.02427678,87863.0,87852.0,0.00017072]
[1766884826086,0.01155912,87870.0,87852.0,0.00017072]
[1766884826284,0.0242745,87869.0,87852.0,0.00017072]
[1766884826477,0.0242745,87868.0,87852.0,0.00017072]
[1766884826784,0.0242745,87867.0,87852.0,0.00017072]
[1766884826984,0.0242745,87866.0,87852.0,0.00017072]
[1766884827181,0.0242745,87865.0,87852.0,0.00017072]
[1766884827385,0.0242745,87864.0,87852.0,0.00017072]
[1766884827683,0.0242745,87863.0,87852.0,0.00017072]
[1766884827883,0.0242745,87862.0,87852.0,0.00017072]
[1766884828074,0.01155912,87870.0,87852.0,0.00017072]
[1766884828277,0.02427049,87869.0,87852.0,0.00017072]
[1766884828476,0.02427049,87868.0,87852.0,0.00017072]
[1766884828778,0.02427049,87867.0,87852.0,0.00017072]
[1766884828978,0.02427049,87866.0,87852.0,0.00017072]
[1766884829286,0.02427049,87865.0,87852.0,0.00017072]
[1766884829484,0.02427049,87864.0,87852.0,0.00017072]
[1766884829779,0.02427049,87863.0,87852.0,0.00017072]
[1766884829979,0.02427049,87862.0,87852.0,0.00017072]
[1766884830171,0.02427049,87861.0,87852.0,0.00017072]
[1766884830376,0.02427049,87860.0,87852.0,0.00017072]
[1766884830584,0.01155912,87870.0,87853.0,0.0113906]
[1766884830887,0.02426616,87869.0,87853.0,0.0113906]
[1766884831086,0.02426616,87868.0,87853.0,0.0113906]
[1766884831280,0.02426616,87867.0,87853.0,0.0113906]
[1766884831486,0.01155912,87870.0,87853.0,0.0113906]
[1766884831487,0.02426616,87866.0,87853.0,0.0113906]
[1766884831785,0.02426616,87865.0,87853.0,0.0113906]
[1766884832082,0.02426616,87864.0,87853.0,0.0113906]
[1766884832276,0.02426616,87863.0,87853.0,0.0113906]
[1766884832478,0.02426616,87862.0,87853.0,0.0113906]
[1766884832679,0.02426616,87861.0,87853.0,0.0113906]
[1766884832882,0.02426616,87860.0,87853.0,0.0113906]
[1766884833085,0.02426616,87859.0,87852.0,0.00017072]
[1766884833388,0.02426616,87858.0,87846.0,0.12476]
[1766884833583,0.01155912,87870.0,87846.0,0.12476]
[1766884833785,0.0113887,87868.0,87846.0,0.12476]
[1766884833987,0.02426442,87867.0,87846.0,0.12476]
[1766884834187,0.02426442,87866.0,87848.0,0.00017072]
[1766884834485,0.0113887,87868.0,87848.0,0.00017072]
[1766884834685,0.02426441,87867.0,87848.0,0.00017072]
[1766884834885,0.0113887,87868.0,87848.0,0.00017072]
[1766884834886,0.02426441,87866.0,87848.0,0.00017072]
[1766884835087,0.02426441,87865.0,87848.0,0.00017072]
[1766884835289,0.02426441,87864.0,87851.0,0.0113908]
[1766884835488,0.02426441,87863.0,87851.0,0.0113908]
[1766884835685,0.02426441,87862.0,87851.0,0.0113908]
[1766884835887,0.02426441,87861.0,87851.0,0.0113908]
[1766884836081,0.02426441,87860.0,87851.0,0.0113908]
[1766884836385,0.02426441,87859.0,87853.0,0.0113905]
[1766884836590,0.02426441,87858.0,87853.0,0.0113905]
[1766884836786,1e-08,87857.0,87853.0,0.0113905]
[1766884836986,0.0113887,87868.0,87853.0,0.0113905]
[1766884837791,0.00017072,87870.0,87853.0,0.0113905]
[1766884837986,0.0113885,87869.0,87853.0,0.0113905]
[1766884839590,0.0113885,87869.0,87850.0,0.12476]
[1766884840184,0.00017072,87870.0,87852.0,0.0113906]
[1766884843294,0.01155912,87870.0,87852.0,0.0113906]
[1766884844088,0.11417866,87862.0,87852.0,0.0113906]
[1766884844492,0.00017072,87870.0,87854.0,0.0113903]
[1766884844894,0.11434938,87870.0,87854.0,0.0113903]
[1766884845498,0.12573778,87870.0,87850.0,0.1361508]
[1766884846298,0.11434938,87870.0,87850.0,0.1361508]
[1766884848295,0.11434938,87870.0,87852.0,0.0113906]
[1766884848696,0.02418861,87869.0,87852.0,0.0113906]
[1766884848896,0.02418861,87868.0,87852.0,0.0113906]
[1766884849196,0.02418861,87867.0,87852.0,0.0113906]
[1766884849391,0.11434938,87870.0,87852.0,0.0113906]
[1766884849392,0.02418861,87866.0,87852.0,0.0113906]
[1766884849596,0.02418861,87865.0,87852.0,0.0113906]
[1766884849797,0.02418861,87864.0,87852.0,0.0113906]
[1766884849996,0.02418861,87863.0,87852.0,0.0113906]
[1766884850196,0.02418861,87862.0,87852.0,0.0113906]
[1766884850497,0.02418861,87861.0,87852.0,0.0113906]
[1766884850797,0.02418861,87860.0,87852.0,0.0113906]
[1766884851099,0.02418861,87859.0,87852.0,0.0113906]
[1766884851294,0.02418861,87858.0,87852.0,0.0113906]
[1766884851494,0.02418861,87857.0,87852.0,0.0113906]
[1766884851694,1e-08,87856.0,87852.0,0.0113906]
[1766884851900,0.17582108,87870.0,87852.0,0.0113906]
[1766884854102,0.23282108,87870.0,87849.0,0.0113911]
[1766884854398,0.11417866,87860.0,87850.0,0.057]
[1766884857808,0.11417866,87860.0,87851.0,0.0113908]
[1766884860506,0.0113886,87869.0,87851.0,0.0113908]
[1766884863607,0.17134938,87870.0,87853.0,0.0113905]
[1766884863906,0.02404925,87869.0,87851.0,0.057]
[1766884864108,0.02404925,87868.0,87852.0,0.0113906]
[1766884864308,0.02404925,87867.0,87852.0,0.0113906]
[1766884864507,0.02404925,87866.0,87852.0,0.0113906]
[1766884864699,0.23282108,87870.0,87852.0,0.0113906]
[1766884864700,0.02404925,87865.0,87852.0,0.0113906]
[1766884864901,0.02404925,87864.0,87852.0,0.0113906]
[1766884865101,0.02404925,87863.0,87852.0,0.0113906]
[1766884865301,0.02404925,87862.0,87852.0,0.0113906]
[1766884865502,0.02404925,87861.0,87852.0,0.0113906]
[1766884865810,0.02404925,87860.0,87852.0,0.0113906]
[1766884866010,0.02404925,87859.0,87852.0,0.0113906]
[1766884866211,0.02404925,87858.0,87852.0,0.0113906]
[1766884866510,0.02404925,87857.0,87852.0,0.0113906]
[1766884866812,0.24420948,87870.0,87852.0,0.0113906]
[1766884867206,0.18273778,87870.0,87852.0,0.0113906]
[1766884876015,0.18273778,87870.0,87851.0,0.057]
[1766884877505,0.18273778,87870.0,87851.0,0.0683907]
[1766884878821,0.02412456,87869.0,87851.0,0.0683907]
[1766884879015,0.02412456,87868.0,87851.0,0.0683907]
[1766884879218,0.02412456,87867.0,87851.0,0.0683907]
[1766884879416,0.02412456,87866.0,87851.0,0.0683907]
[1766884879719,0.02412456,87865.0,87851.0,0.057]
[1766884879908,0.02412456,87864.0,87851.0,0.057]
[1766884880109,0.11417866,87861.0,87851.0,0.057]
[1766884880317,0.02412456,87860.0,87851.0,0.057]
[1766884882217,0.02412456,87860.0,87848.0,0.01156182]
[1766884882423,0.02412456,87860.0,87849.0,0.057]
[1766884886117,0.02412456,87860.0,87848.0,0.00017072]
[1766884886326,0.02412456,87860.0,87839.0,0.0791523]
[1766884886327,0.0113903,87856.0,87839.0,0.0791523]
[1766884886527,0.11417866,87850.0,87841.0,0.057]
[1766884886822,0.02412456,87849.0,87841.0,0.057]
[1766884888518,0.02412456,87849.0,87840.0,0.057]
[1766884889620,0.02412456,87849.0,87836.0,0.01167734]
[1766884889823,0.02412456,87849.0,87837.0,0.057]
[1766884890822,9.812e-05,87848.0,87839.0,0.0113923]
[1766884899819,0.02464273,87847.0,87839.0,0.0113923]
[1766884900024,0.00017072,87853.0,87837.0,0.057]
[1766884901228,0.00017072,87853.0,87844.0,0.0113917]
[1766884901423,0.057,87858.0,87846.0,0.0113914]
[1766884902529,0.057,87858.0,87844.0,0.057]
[1766884911233,0.057,87858.0,87845.0,0.0113916]
[1766884912234,0.02455245,87857.0,87845.0,0.0113916]
[1766884912433,0.02455245,87856.0,87845.0,0.0113916]
[1766884912629,0.02455245,87855.0,87845.0,0.0113916]
[1766884912829,0.02455245,87854.0,87845.0,0.0113916]
[1766884913039,0.02455245,87853.0,87845.0,0.0113916]
[1766884913334,0.02455245,87852.0,87845.0,0.0113916]
[1766884913535,0.02455245,87851.0,87845.0,0.0113916]
[1766884913833,0.02455245,87850.0,87845.0,0.0113916]
[1766884914035,5e-08,87849.0,87845.0,0.0113916]
[1766884914235,0.057,87858.0,87845.0,0.0113916]
[1766884916339,0.1184717,87858.0,87845.0,0.0113916]
[1766884918135,0.057,87858.0,87845.0,0.0113916]
[1766884918741,0.057,87858.0,87844.0,0.057]
[1766884918742,0.057,87858.0,87847.0,0.0113913]
[1766884920743,0.057,87858.0,87844.0,0.0683917]
[1766884922645,0.0614717,87856.0,87844.0,0.0683917]
[1766884923644,0.0614717,87856.0,87846.0,0.0113914]
[1766884923944,0.0614717,87856.0,87844.0,0.057]
[1766884926242,0.0614717,87856.0,87844.0,0.0683917]
[1766884926447,0.0614717,87856.0,87846.0,0.0113914]
[1766884932550,0.02447844,87855.0,87846.0,0.0113914]
[1766884932757,0.02447844,87854.0,87846.0,0.0113914]
[1766884932958,0.02447844,87853.0,87846.0,0.0113914]
[1766884933252,0.02447844,87852.0,87846.0,0.0113914]
[1766884933453,0.02447844,87851.0,87846.0,0.0113914]
[1766884933659,4e-08,87850.0,87846.0,0.0113914]
[1766884933848,0.057,87858.0,87846.0,0.0113914]
[1766884936556,0.057,87858.0,87848.0,0.0113912]
[1766884939356,0.057,87858.0,87844.0,0.057]
[1766884939655,0.057,87870.0,87845.0,0.0113915]
[1766884939861,0.011387,87881.0,87845.0,0.0113915]
[1766884939862,0.08185267,87884.0,87869.0,0.0113884]
[1766884940062,0.12476,87883.0,87861.0,0.057]
[1766884940248,0.12476,87883.0,87870.0,0.0113883]
[1766884942262,0.057,87883.0,87870.0,0.0113883]
[1766884946170,0.00017072,87885.0,87870.0,0.0113883]
[1766884946364,0.00017072,87885.0,87868.0,0.06793072]
[1766884947269,0.00017072,87885.0,87869.0,0.0113885]
[1766884947666,0.00017072,87885.0,87868.0,0.06793072]
[1766884949263,0.00017072,87885.0,87875.0,0.0113876]
[1766884949457,0.06776,87902.0,87887.0,0.0113861]
[1766884949674,0.057,87899.0,87887.0,0.0113862]
[1766884950067,0.057,87899.0,87884.0,0.0113865]
[1766884950568,0.057,87899.0,87883.0,0.00017072]
[1766884952268,0.0683847,87899.0,87883.0,0.00017072]
[1766884962681,0.06124385,87895.0,87883.0,0.00017072]
[1766884962885,0.06124385,87894.0,87883.0,0.00017072]
[1766884965282,0.06124385,87893.0,87883.0,0.00017072]
[1766884966885,0.06124385,87893.0,87876.0,0.0113875]
[1766884967179,0.0113859,87889.0,87870.0,0.12547564]
[1766884967384,0.11408734,87890.0,87871.0,0.12476]
[1766884967385,0.0113863,87886.0,87871.0,0.12476]
[1766884967586,0.0113863,87886.0,87872.0,0.06776]
[1766884968984,0.011386,87889.0,87872.0,0.06776]
[1766884969985,0.057,87892.0,87877.0,0.0113874]
[1766884970180,0.11408734,87890.0,87874.0,0.0113878]
[1766884970381,0.11408734,87890.0,87872.0,0.06776]
[1766884970979,0.11408734,87890.0,87873.0,0.011388]
[1766884971691,0.11408734,87890.0,87875.0,0.0113876]
[1766884974981,0.11408734,87890.0,87870.0,0.00017072]
[1766884975181,0.11408734,87890.0,87870.0,0.12493072]
[1766884975382,0.011386,87889.0,87871.0,0.0113882]
[1766884976180,0.11408734,87881.0,87868.0,0.057]
[1766884976781,0.057,87885.0,87875.0,0.0113876]
[1766884977378,0.057,87886.0,87871.0,0.00017072]
[1766884977992,0.057,87886.0,87876.0,0.0113875]
[1766884981794,0.057,87886.0,87873.0,0.0113879]
[1766884983900,0.057,87886.0,87875.0,0.0113877]
[1766885006531,0.0241598,87885.0,87875.0,0.0113877]
[1766885006729,0.0241598,87884.0,87875.0,0.0113877]
[1766885006925,0.0241598,87883.0,87875.0,0.0113877]
[1766885007234,0.0241598,87882.0,87875.0,0.0113877]
[1766885007434,0.0241598,87881.0,87875.0,0.0113877]
[1766885007628,0.0241598,87880.0,87875.0,0.0113877]
[1766885007830,0.057,87886.0,87875.0,0.0113877]
[1766885012740,0.06124385,87881.0,87871.0,0.00017072]
[1766885013837,0.06124385,87881.0,87874.0,0.0113878]
[1766885015734,0.11408734,87884.0,87871.0,0.00017072]
[1766885015929,0.057,87886.0,87861.0,0.057]
[1766885015930,0.22817468,87881.0,87861.0,0.057]
[1766885016129,0.11408734,87871.0,87850.0,0.11408734]
[1766885016338,0.11408734,87871.0,87856.0,0.0113902]
[1766885017036,0.11408734,87871.0,87857.0,0.057]
[1766885017242,0.11408734,87871.0,87856.0,0.0113902]
[1766885017440,0.11408734,87871.0,87857.0,0.12476]
[1766885017740,0.11408734,87871.0,87858.0,0.12476]
[1766885019839,0.02461567,87870.0,87858.0,0.12476]
[1766885020037,0.02461567,87869.0,87858.0,0.12476]
[1766885020344,0.02461567,87868.0,87859.0,0.0252]
[1766885020644,0.02461567,87867.0,87859.0,0.0252]
[1766885020830,0.11408734,87871.0,87859.0,0.0252]
[1766885020831,0.02461567,87866.0,87859.0,0.0252]
[1766885021146,0.02461567,87865.0,87859.0,0.01300853]
[1766885021335,0.02461567,87864.0,87859.0,0.01300853]
[1766885021642,0.02461567,87863.0,87859.0,0.01300853]
[1766885021842,0.02461567,87862.0,87859.0,0.01300853]
[1766885022038,0.02461567,87861.0,87859.0,0.01300853]
[1766885022233,0.02461567,87860.0,87859.0,0.01300853]
[1766885022640,7e-08,87860.0,87859.0,0.01300853]
[1766885022845,0.11408734,87871.0,87859.0,0.01300853]
[1766885023143,0.11408734,87871.0,87855.0,0.01156102]
[1766885023345,0.11408734,87871.0,87858.0,0.057]
[1766885026840,0.11408734,87870.0,87857.0,0.01139]
[1766885028147,0.00017072,87872.0,87857.0,0.01139]
[1766885030451,0.00017072,87872.0,87855.0,0.00017072]
[1766885030854,0.00017072,87872.0,87856.0,0.0113901]
[1766885034360,0.11416155,87870.0,87847.0,0.06184174]
[1766885034653,0.02490753,87869.0,87847.0,0.06184174]
[1766885034840,0.08190753,87868.0,87847.0,0.06184174]
[1766885035043,0.0113893,87863.0,87847.0,0.06184174]
[1766885035245,0.02490753,87862.0,87847.0,0.06184174]
[1766885036060,0.0683895,87861.0,87842.0,0.011392]
[1766885036360,0.02490753,87860.0,87842.0,0.068392]
[1766885036656,0.02490753,87859.0,87842.0,0.068392]
[1766885036849,0.02490753,87858.0,87842.0,0.068392]
[1766885037043,0.02490753,87857.0,87842.0,0.068392]
[1766885037259,0.02490753,87856.0,87842.0,0.057]
[1766885037460,0.02490753,87855.0,87842.0,0.057]
[1766885037654,0.00017072,87858.0,87842.0,0.057]
[1766885037849,0.0249049,87857.0,87842.0,0.057]
[1766885038047,0.0249049,87856.0,87842.0,0.057]
[1766885038251,0.0249049,87855.0,87842.0,0.068392]
[1766885038455,0.00017072,87858.0,87844.0,0.0113917]
[1766885038755,0.02490487,87857.0,87844.0,0.0113917]
[1766885038953,0.02490487,87856.0,87844.0,0.0113917]
[1766885039257,0.02490487,87855.0,87844.0,0.0113917]
[1766885039458,0.00017072,87858.0,87844.0,0.0113917]
[1766885039658,0.02490493,87857.0,87844.0,0.0113917]
[1766885039958,0.02490493,87856.0,87844.0,0.0113917]
[1766885040160,0.02490493,87855.0,87844.0,0.0113917]
[1766885040360,0.00017072,87858.0,87844.0,0.0113917]
[1766885040557,0.02490705,87857.0,87844.0,0.0113917]
[1766885040754,0.02490705,87856.0,87844.0,0.0113917]
[1766885040954,0.02490705,87855.0,87844.0,0.0113917]
[1766885041152,0.02490882,87854.0,87844.0,0.0113917]
[1766885041359,0.00017072,87858.0,87844.0,0.0113917]
[1766885041659,0.02490882,87857.0,87844.0,0.0113917]
[1766885041855,0.02490882,87856.0,87844.0,0.0113917]
[1766885042054,0.02490882,87855.0,87844.0,0.0113917]
[1766885042262,0.02490882,87854.0,87844.0,0.0113917]
[1766885042447,0.00017072,87858.0,87844.0,0.0113917]
[1766885042650,0.02491133,87857.0,87844.0,0.0113917]
[1766885042849,0.02491133,87856.0,87844.0,0.0113917]
[1766885043059,0.02491133,87855.0,87844.0,0.0113917]
[1766885043259,0.02491133,87854.0,87844.0,0.0113917]
[1766885043457,0.02491133,87853.0,87844.0,0.0113917]
[1766885043657,0.00017072,87858.0,87844.0,0.0113917]
[1766885043861,0.02491502,87857.0,87844.0,0.0113917]
[1766885044163,0.02491502,87856.0,87844.0,0.0113917]
[1766885044349,0.02491502,87855.0,87844.0,0.0113917]
[1766885044661,0.02491502,87854.0,87844.0,0.0113917]
[1766885044861,0.02491502,87853.0,87844.0,0.0113917]
[1766885045156,0.02492719,87852.0,87844.0,0.0113917]
[1766885045356,0.00017072,87858.0,87844.0,0.0113917]
[1766885045549,0.02492719,87857.0,87844.0,0.0113917]
[1766885045748,0.02492719,87856.0,87842.0,0.057]
[1766885045954,0.02492719,87855.0,87842.0,0.057]
[1766885046153,0.02492719,87854.0,87842.0,0.057]
[1766885046448,0.02492719,87853.0,87842.0,0.057]
[1766885046653,0.02492719,87852.0,87842.0,0.057]
[1766885046867,0.02492719,87851.0,87842.0,0.057]
[1766885047163,0.02492719,87850.0,87842.0,0.057]
[1766885047365,0.02492719,87849.0,87842.0,0.057]
[1766885047661,0.00017072,87858.0,87842.0,0.057]
[1766885047862,0.02491908,87857.0,87842.0,0.057]
[1766885048164,0.02491908,87856.0,87842.0,0.057]
[1766885048362,0.02491908,87855.0,87842.0,0.057]
[1766885048663,0.02491908,87854.0,87842.0,0.057]
[1766885048866,0.02491908,87853.0,87842.0,0.057]
[1766885049065,0.02491908,87852.0,87842.0,0.057]
[1766885049363,0.02491908,87851.0,87842.0,0.0683919]
[1766885049570,0.02491908,87850.0,87842.0,0.0683919]
[1766885049862,0.00017072,87858.0,87844.0,0.0113917]
[1766885049863,0.02491908,87849.0,87844.0,0.0113917]
[1766885050058,0.00017072,87858.0,87844.0,0.0113917]
[1766885050254,0.02491636,87857.0,87844.0,0.0113917]
[1766885050452,0.02491636,87856.0,87844.0,0.0113917]
[1766885050652,0.02491636,87855.0,87844.0,0.0113917]
[1766885050850,0.02491636,87854.0,87844.0,0.0113917]
[1766885051066,0.02491636,87853.0,87827.0,0.0113938]
[1766885051365,0.02491636,87852.0,87843.0,0.0113918]
[1766885051564,0.02491636,87851.0,87843.0,0.0683918]
[1766885051764,0.02491636,87850.0,87843.0,0.0683918]
[1766885051960,0.02491636,87849.0,87843.0,0.0683918]
[1766885052161,0.02491636,87848.0,87843.0,0.0683918]
[1766885052361,0.00017072,87858.0,87843.0,0.0683918]
[1766885052561,0.02491547,87857.0,87843.0,0.0683918]
[1766885052761,0.02491547,87856.0,87843.0,0.0683918]
[1766885052963,0.02491547,87855.0,87843.0,0.0683918]
[1766885053165,0.02491547,87854.0,87843.0,0.0113918]
[1766885053465,0.02491547,87853.0,87843.0,0.0113918]
[1766885053666,0.02491547,87852.0,87843.0,0.0113918]
[1766885053861,0.02491547,87851.0,87845.0,0.0113915]
[1766885054062,0.00017072,87858.0,87842.0,0.057]
[1766885056269,0.00017072,87858.0,87845.0,0.0113915]
[1766885058877,0.00017072,87858.0,87842.0,0.057]
[1766885061173,0.00017072,87858.0,87846.0,0.0113914]
[1766885062268,0.00017072,87858.0,87848.0,0.0113911]
[1766885066076,0.02491679,87857.0,87848.0,0.0113911]
[1766885066273,0.02491679,87856.0,87848.0,0.0113911]
[1766885066576,0.02491679,87855.0,87848.0,0.0113911]
[1766885066876,0.02491679,87854.0,87848.0,0.0113911]
[1766885067076,0.02491679,87853.0,87848.0,0.0113911]
[1766885067278,0.02491679,87852.0,87848.0,0.0113911]
[1766885067577,0.00017072,87858.0,87848.0,0.0113911]
[1766885071183,0.00017072,87858.0,87850.0,0.0113909]
[1766885079495,0.02481969,87857.0,87850.0,0.0113909]
[1766885079694,0.02481969,87856.0,87847.0,0.0113913]
[1766885079886,0.02481969,87855.0,87847.0,0.0113913]
[1766885080087,0.02481969,87854.0,87847.0,0.0113913]
[1766885080290,0.02481969,87853.0,87847.0,0.0113913]
[1766885080486,9e-08,87852.0,87847.0,0.0113913]
[1766885080782,0.00017072,87858.0,87847.0,0.0113913]
[1766885081896,0.00017072,87858.0,87849.0,0.011391]
[1766885088705,0.00017072,87858.0,87846.0,0.0113914]
[1766885092805,0.02471315,87857.0,87846.0,0.0113914]
[1766885093106,0.02471315,87856.0,87846.0,0.0113914]
[1766885093307,0.02471315,87855.0,87846.0,0.0113914]
[1766885093606,0.02471315,87854.0,87846.0,0.0113914]
[1766885093905,0.02471315,87853.0,87846.0,0.0113914]
[1766885094204,0.02471315,87852.0,87846.0,0.0113914]
[1766885094402,0.02471315,87851.0,87846.0,0.0113914]
[1766885094605,5e-08,87850.0,87846.0,0.0113914]
[1766885094795,0.00017072,87858.0,87846.0,0.0113914]
[1766885097209,0.01156072,87858.0,87843.0,0.0113918]
[1766885099505,0.01156072,87858.0,87842.0,0.057]
[1766885100511,0.00017072,87858.0,87844.0,0.0113916]
[1766885101311,0.00017072,87858.0,87846.0,0.0113914]
[1766885102711,0.06141457,87858.0,87846.0,0.0113914]
[1766885106515,0.02429849,87857.0,87846.0,0.0113914]
[1766885106715,0.02429849,87856.0,87846.0,0.0113914]
[1766885106915,0.02429849,87855.0,87846.0,0.0113914]
[1766885107216,0.02429849,87854.0,87846.0,0.0113914]
[1766885107515,0.02429849,87853.0,87846.0,0.0113914]
[1766885107717,0.02429849,87852.0,87846.0,0.0113914]
[1766885107914,9e-08,87851.0,87846.0,0.0113914]
[1766885108216,0.06141457,87858.0,87846.0,0.0113914]
[1766885109614,0.06141457,87858.0,87851.0,0.0113908]
[1766885109817,0.00017072,87858.0,87842.0,0.057]
[1766885112317,0.00017072,87858.0,87848.0,0.0113912]
[1766885113717,0.1141948,87860.0,87852.0,0.0113906]
[1766885113918,0.057,87861.0,87849.0,0.011391]
[1766885114120,0.057,87861.0,87851.0,0.0113908]
[1766885114823,0.1711948,87861.0,87851.0,0.0113908]
[1766885115418,0.1711948,87861.0,87848.0,0.0113912]
[1766885115615,0.06124385,87863.0,87847.0,0.00017072]
[1766885115814,0.06776,87869.0,87858.0,0.0113898]
[1766885116014,0.0113877,87876.0,87858.0,0.0113898]
[1766885116219,0.12476,87875.0,87858.0,0.0113898]
[1766885116418,0.1141948,87870.0,87858.0,0.0113898]
[1766885116614,0.057,87869.0,87858.0,0.0113898]
[1766885117013,0.057,87869.0,87855.0,0.0113903]
[1766885134325,0.0113886,87868.0,87852.0,0.0113906]
[1766885134525,0.057,87869.0,87852.0,0.0113906]
[1766885135729,0.06144006,87866.0,87852.0,0.0113906]
[1766885137426,0.06144006,87866.0,87854.0,0.0113904]
[1766885142727,0.06144006,87861.0,87850.0,0.1141948]
[1766885143129,0.06144006,87861.0,87851.0,0.057]
[1766885143422,0.06144006,87861.0,87854.0,0.0113904]
[1766885152828,0.06144006,87866.0,87854.0,0.0113904]
[1766885163241,0.06144006,87866.0,87851.0,0.0683907]
[1766885168941,0.0113891,87865.0,87851.0,0.057]
[1766885169136,0.057,87869.0,87830.0,0.04101946]
[1766885169437,0.11844006,87869.0,87832.0,0.11381938]
[1766885169639,0.0113902,87857.0,87832.0,0.11381938]
[1766885169829,0.0113902,87857.0,87831.0,0.12476]
[1766885170226,0.00017072,87853.0,87835.0,0.00017072]
[1766885170436,0.00017072,87853.0,87839.0,0.0113923]
[1766885170642,0.00017072,87853.0,87840.0,0.057]
[1766885171738,0.00017072,87853.0,87840.0,0.0683922]
[1766885173741,0.00017072,87853.0,87842.0,0.0113919]
[1766885179147,0.00017072,87853.0,87844.0,0.0113916]
[1766885183848,0.02418553,87852.0,87844.0,0.0113916]
[1766885184045,0.02418553,87851.0,87844.0,0.0113916]
[1766885184350,3e-08,87850.0,87844.0,0.0113916]
[1766885184550,0.00017072,87853.0,87844.0,0.0113916]
[1766885196153,0.02408047,87852.0,87844.0,0.0113916]
[1766885196357,0.02408047,87851.0,87844.0,0.0113916]
[1766885196551,0.02408047,87850.0,87844.0,0.0113916]
[1766885196851,0.02408047,87849.0,87844.0,0.0113916]
[1766885197155,7e-08,87848.0,87844.0,0.0113916]
[1766885197455,0.00017072,87853.0,87844.0,0.0113916]
[1766885199147,0.00017072,87853.0,87841.0,0.02448134]
[1766885199649,0.00017072,87853.0,87843.0,0.0113918]
[1766885200561,0.00017072,87853.0,87841.0,0.01308934]
[1766885200762,0.00017072,87853.0,87842.0,0.057]
[1766885207263,0.01156142,87853.0,87842.0,0.057]
[1766885207459,0.01156142,87853.0,87835.0,0.00017072]
[1766885207460,0.0113917,87845.0,87835.0,0.00017072]
[1766885207660,0.0113914,87847.0,87835.0,0.00017072]
[1766885207858,0.0113914,87847.0,87836.0,0.057]
[1766885208058,0.011391,87850.0,87836.0,0.057]
[1766885208964,0.02444779,87849.0,87836.0,0.057]
[1766885209166,0.02444779,87848.0,87836.0,0.057]
[1766885209367,0.02444779,87847.0,87836.0,0.057]
[1766885209666,0.02444779,87846.0,87836.0,0.057]
[1766885209865,0.02444779,87845.0,87836.0,0.057]
[1766885210168,0.011391,87850.0,87836.0,0.057]
[1766885210169,0.02444779,87844.0,87836.0,0.057]
[1766885210370,0.02444779,87843.0,87836.0,0.057]
[1766885210571,0.02444779,87842.0,87836.0,0.057]
[1766885210771,0.02444779,87841.0,87836.0,0.057]
[1766885210972,0.02444779,87840.0,87836.0,0.057]
[1766885211270,0.02444779,87839.0,87836.0,0.057]
[1766885211471,0.011391,87850.0,87836.0,0.057]
[1766885211671,0.0113912,87848.0,87836.0,0.057]
[1766885211871,0.02443626,87847.0,87836.0,0.057]
[1766885212063,0.02443626,87846.0,87836.0,0.057]
[1766885212262,0.02443626,87845.0,87836.0,0.057]
[1766885212463,0.02443626,87844.0,87836.0,0.057]
[1766885212671,0.02443626,87843.0,87836.0,0.057]
[1766885212872,0.02443626,87842.0,87836.0,0.057]
[1766885213067,0.02443626,87841.0,87836.0,0.057]
[1766885213265,0.02443626,87840.0,87831.0,0.057]
[1766885213465,0.02443626,87839.0,87831.0,0.057]
[1766885213666,0.02443626,87838.0,87831.0,0.057]
[1766885213868,0.02443626,87837.0,87831.0,0.057]
[1766885214076,0.11421968,87841.0,87831.0,0.057]
[1766885214265,0.02458057,87840.0,87831.0,0.057]
[1766885214471,0.02458057,87839.0,87831.0,0.057]
[1766885214670,0.02458057,87838.0,87831.0,0.057]
[1766885214874,0.11421968,87841.0,87831.0,0.057]
[1766885219270,0.11421968,87841.0,87828.0,0.0113938]
[1766885219472,0.11421968,87841.0,87830.0,0.0113935]
[1766885220774,0.12476,87849.0,87833.0,0.0113932]